[Event "Late Titled Tuesday Blitz February 8 2022"]
[White "Nikologorsky, Matfei"]
[Black "Proleiko, Julian"]
[WhiteFideId "24102474"]
[BlackFideId "30900255"]
[WhiteElo "2231"]
[BlackElo "2116"]
[Result "1-0"]
[Round "02"]
[TimeControl "180+1"]
[Date "2022.02.09"]
[WhiteClock "0:00:23"]
[BlackClock "0:00:24"]

1. e4 {[%clk 0:03:00]}  c6 {[%clk 0:02:49]} 2. d4 {[%clk 0:03:00]}  d5 {[%clk 0:02:50]} 3. Nc3 {[%clk 0:03:00]}  dxe4 {[%clk 0:02:50]} 4. Nxe4 {[%clk 0:03:01]}  Bf5 {[%clk 0:02:49]} 5. Ng3 {[%clk 0:03:01]}  Bg6 {[%clk 0:02:50]} 6. Bc4 {[%clk 0:03:02]}  e6 {[%clk 0:02:49]} 7. N1e2 {[%clk 0:03:01]}  Bd6 {[%clk 0:02:47]} 8. h4 {[%clk 0:03:01]}  h6 {[%clk 0:02:33]} 9. Nf4 {[%clk 0:03:00]}  Bh7 {[%clk 0:02:33]} 10. Ngh5 {[%clk 0:02:51]}  Kf8 {[%clk 0:02:29]} 11. Qg4 {[%clk 0:02:45]}  g6 {[%clk 0:02:24]} 12. Qf3 {[%clk 0:02:31]}  Qe7 {[%clk 0:01:50]} 13. Nxe6+ {[%clk 0:01:41]}  Ke8 {[%clk 0:01:49]} 14. Ng7+ {[%clk 0:01:42]}  Kd7 {[%clk 0:01:49]} 15. O-O {[%clk 0:01:42]}  fxe6 {[%clk 0:01:48]} 16. Nxe6 {[%clk 0:01:38]}  Qxh4 {[%clk 0:01:39]} 17. Bf4 {[%clk 0:01:22]}  Bxf4 {[%clk 0:01:33]} 18. Nxf4 {[%clk 0:01:22]}  g5 {[%clk 0:01:28]} 19. Ne6 {[%clk 0:01:03]}  Ne7 {[%clk 0:01:16]} 20. Nc5+ {[%clk 0:01:00]}  Kc7 {[%clk 0:01:13]} 21. Rfe1 {[%clk 0:00:56]}  Nf5 {[%clk 0:00:54]} 22. Re4 {[%clk 0:00:33]}  g4 {[%clk 0:00:52]} 23. Qf4+ {[%clk 0:00:23]}  Nd6 {[%clk 0:00:36]} 24. Re6 {[%clk 0:00:18]}  Rd8 {[%clk 0:00:36]} 25. Nxb7 {[%clk 0:00:11]}  Kxb7 {[%clk 0:00:36]} 26. Rxd6 {[%clk 0:00:12]}  Rxd6 {[%clk 0:00:35]} 27. Qxd6 {[%clk 0:00:13]}  g3 {[%clk 0:00:28]} 28. fxg3 {[%clk 0:00:12]}  Qg5 {[%clk 0:00:24]} 29. Re1 {[%clk 0:00:11]}  Bf5 {[%clk 0:00:16]} 30. Re7+ {[%clk 0:00:11]}  Nd7 {[%clk 0:00:15]} 31. Rxd7+ {[%clk 0:00:10]}  Bxd7 {[%clk 0:00:15]} 32. Qxd7+ {[%clk 0:00:11]}  Kb6 {[%clk 0:00:16]} 33. Qd6 {[%clk 0:00:10]}  Rd8 {[%clk 0:00:15]} 34. Qb4+ {[%clk 0:00:10]}  Kc7 {[%clk 0:00:16]} 35. d5 {[%clk 0:00:09]}  Qe3+ {[%clk 0:00:15]} 36. Kh2 {[%clk 0:00:09]}  Qb6 {[%clk 0:00:14]} 37. Qe7+ {[%clk 0:00:09]}  Rd7 {[%clk 0:00:15]} 38. d6+ {[%clk 0:00:10]}  Kc8 {[%clk 0:00:14]} 39. Be6 {[%clk 0:00:11]}  Qd8 {[%clk 0:00:14]} 40. Bxd7+ {[%clk 0:00:10]}  Qxd7 {[%clk 0:00:14]} 41. Qxd7+ {[%clk 0:00:11]}  Kxd7 {[%clk 0:00:14]} 42. Kh3 {[%clk 0:00:12]}  Kxd6 {[%clk 0:00:15]} 43. Kh4 {[%clk 0:00:13]}  Ke5 {[%clk 0:00:14]} 44. Kh5 {[%clk 0:00:13]}  Kf5 {[%clk 0:00:15]} 45. c4 {[%clk 0:00:12]}  c5 {[%clk 0:00:15]} 46. b3 {[%clk 0:00:12]}  a5 {[%clk 0:00:15]} 47. a3 {[%clk 0:00:13]}  Ke4 {[%clk 0:00:14]} 48. Kxh6 {[%clk 0:00:13]}  Kd3 {[%clk 0:00:15]} 49. g4 {[%clk 0:00:13]}  Kc3 {[%clk 0:00:15]} 50. g5 {[%clk 0:00:14]}  Kxb3 {[%clk 0:00:15]} 51. g6 {[%clk 0:00:15]}  Kxa3 {[%clk 0:00:15]} 52. g7 {[%clk 0:00:16]}  Kb4 {[%clk 0:00:16]} 53. g8=Q {[%clk 0:00:17]}  a4 {[%clk 0:00:17]} 54. Qa8 {[%clk 0:00:15]}  Kb3 {[%clk 0:00:17]} 55. g4 {[%clk 0:00:15]}  a3 {[%clk 0:00:18]} 56. g5 {[%clk 0:00:16]}  Kb2 {[%clk 0:00:18]} 57. g6 {[%clk 0:00:16]}  a2 {[%clk 0:00:19]} 58. Qxa2+ {[%clk 0:00:16]}  Kxa2 {[%clk 0:00:20]} 59. g7 {[%clk 0:00:17]}  Kb3 {[%clk 0:00:20]} 60. g8=Q {[%clk 0:00:17]}  Kb4 {[%clk 0:00:21]} 61. Qd5 {[%clk 0:00:18]}  Kc3 {[%clk 0:00:21]} 62. Qxc5 {[%clk 0:00:18]}  Kd3 {[%clk 0:00:22]} 63. Qd5+ {[%clk 0:00:19]}  Kc3 {[%clk 0:00:23]} 64. c5 {[%clk 0:00:19]}  Kb4 {[%clk 0:00:23]} 65. c6 {[%clk 0:00:20]}  Kc3 {[%clk 0:00:24]} 66. c7 {[%clk 0:00:21]}  Kb4 {[%clk 0:00:25]} 67. c8=Q {[%clk 0:00:22]}  Ka4 {[%clk 0:00:25]} 68. Qdb7 {[%clk 0:00:22]}  Ka3 {[%clk 0:00:24]} 69. Qca8# {[%clk 0:00:23]} 1-0


[Site "https://www.chess.com"]

[Event "Late Titled Tuesday Blitz February 8 2022"]
[White "Nilsson, Joakim"]
[Black "Sailer, Mike"]
[WhiteFideId "1723383"]
[BlackFideId "2012901"]
[WhiteElo "2207"]
[BlackElo "2109"]
[Result "1/2-1/2"]
[Round "02"]
[TimeControl "180+1"]
[Date "2022.02.09"]
[WhiteClock "0:00:56"]
[BlackClock "0:00:09"]

1. Nf3 {[%clk 0:03:00]}  d5 {[%clk 0:02:59]} 2. b3 {[%clk 0:02:59]}  Nf6 {[%clk 0:03:00]} 3. Bb2 {[%clk 0:02:58]}  Bf5 {[%clk 0:02:59]} 4. g3 {[%clk 0:02:58]}  e6 {[%clk 0:02:59]} 5. Bg2 {[%clk 0:02:59]}  Be7 {[%clk 0:03:00]} 6. O-O {[%clk 0:02:59]}  O-O {[%clk 0:03:00]} 7. c4 {[%clk 0:03:00]}  c6 {[%clk 0:02:58]} 8. d3 {[%clk 0:02:52]}  Nbd7 {[%clk 0:02:57]} 9. Nbd2 {[%clk 0:02:49]}  Re8 {[%clk 0:02:57]} 10. Rc1 {[%clk 0:02:44]}  a6 {[%clk 0:02:56]} 11. Rc2 {[%clk 0:02:43]}  b5 {[%clk 0:02:47]} 12. Nd4 {[%clk 0:02:40]}  Qb6 {[%clk 0:02:40]} 13. cxd5 {[%clk 0:02:36]}  cxd5 {[%clk 0:02:33]} 14. Nxf5 {[%clk 0:02:28]}  exf5 {[%clk 0:02:33]} 15. Nf3 {[%clk 0:02:28]}  Rac8 {[%clk 0:02:23]} 16. Nd4 {[%clk 0:02:22]}  g6 {[%clk 0:02:13]} 17. Qc1 {[%clk 0:02:21]}  Rxc2 {[%clk 0:01:57]} 18. Qxc2 {[%clk 0:02:22]}  Bc5 {[%clk 0:01:57]} 19. e3 {[%clk 0:02:17]}  Ne5 {[%clk 0:01:39]} 20. Rc1 {[%clk 0:02:14]}  Bxd4 {[%clk 0:01:38]} 21. Bxd4 {[%clk 0:02:15]}  Qb8 {[%clk 0:01:32]} 22. Qc3 {[%clk 0:02:13]}  b4 {[%clk 0:00:59]} 23. Qd2 {[%clk 0:02:03]}  Qb5 {[%clk 0:00:52]} 24. Rc5 {[%clk 0:01:58]}  Qxd3 {[%clk 0:00:47]} 25. Qxd3 {[%clk 0:01:47]}  Nxd3 {[%clk 0:00:47]} 26. Ra5 {[%clk 0:01:44]}  Ne4 {[%clk 0:00:42]} 27. Bxe4 {[%clk 0:01:40]}  dxe4 {[%clk 0:00:38]} 28. Rxa6 {[%clk 0:01:40]}  Rb8 {[%clk 0:00:27]} 29. a3 {[%clk 0:01:39]}  bxa3 {[%clk 0:00:27]} 30. Rxa3 {[%clk 0:01:40]}  Nc1 {[%clk 0:00:23]} 31. Be5 {[%clk 0:01:28]}  Rd8 {[%clk 0:00:13]} 32. Kg2 {[%clk 0:01:23]}  f6 {[%clk 0:00:12]} 33. Bxf6 {[%clk 0:01:22]}  Rb8 {[%clk 0:00:12]} 34. Be5 {[%clk 0:01:18]}  Rxb3 {[%clk 0:00:11]} 35. Ra8+ {[%clk 0:01:16]}  Kf7 {[%clk 0:00:12]} 36. Ra7+ {[%clk 0:01:17]}  Ke6 {[%clk 0:00:10]} 37. Bf4 {[%clk 0:01:16]}  h5 {[%clk 0:00:10]} 38. h4 {[%clk 0:01:16]}  Nd3 {[%clk 0:00:09]} 39. Rg7 {[%clk 0:01:14]}  Kf6 {[%clk 0:00:08]} 40. Rd7 {[%clk 0:01:11]}  Nxf4+ {[%clk 0:00:08]} 41. gxf4 {[%clk 0:01:11]}  Rb2 {[%clk 0:00:08]} 42. Rd6+ {[%clk 0:01:11]}  Kg7 {[%clk 0:00:09]} 43. Kf1 {[%clk 0:01:11]}  Ra2 {[%clk 0:00:09]} 44. Rd1 {[%clk 0:01:10]}  Rb2 {[%clk 0:00:09]} 45. Re1 {[%clk 0:01:10]}  Ra2 {[%clk 0:00:10]} 46. Re2 {[%clk 0:01:10]}  Rxe2 {[%clk 0:00:10]} 47. Kxe2 {[%clk 0:01:10]}  Kf6 {[%clk 0:00:11]} 48. Kd2 {[%clk 0:01:11]}  Ke6 {[%clk 0:00:11]} 49. Kc2 {[%clk 0:01:10]}  Kd6 {[%clk 0:00:12]} 50. Kb3 {[%clk 0:01:09]}  Kd5 {[%clk 0:00:10]} 51. Kb4 {[%clk 0:01:09]}  Kd6 {[%clk 0:00:08]} 52. Kb3 {[%clk 0:01:00]}  Kd5 {[%clk 0:00:08]} 53. Kb4 {[%clk 0:00:58]}  Kd6 {[%clk 0:00:09]} 54. Kb3 {[%clk 0:00:56]} 1/2-1/2


[Site "https://www.chess.com"]

[Event "Late Titled Tuesday Blitz February 8 2022"]
[White "Noboa Silva, Kevin"]
[Black "Bernat, David"]
[WhiteFideId "3618471"]
[BlackFideId "2099225"]
[WhiteElo "2161"]
[BlackElo "2272"]
[Result "1-0"]
[Round "02"]
[TimeControl "180+1"]
[Date "2022.02.09"]
[WhiteClock "0:00:18"]
[BlackClock "0:00:29"]

1. e4 {[%clk 0:03:00]}  c5 {[%clk 0:03:00]} 2. c3 {[%clk 0:02:58]}  Nf6 {[%clk 0:02:58]} 3. e5 {[%clk 0:02:58]}  Nd5 {[%clk 0:02:59]} 4. d4 {[%clk 0:02:59]}  cxd4 {[%clk 0:02:59]} 5. cxd4 {[%clk 0:03:00]}  Nc6 {[%clk 0:02:59]} 6. Bc4 {[%clk 0:02:59]}  Nb6 {[%clk 0:02:59]} 7. Bb5 {[%clk 0:03:00]}  a6 {[%clk 0:02:56]} 8. Bxc6 {[%clk 0:02:57]}  dxc6 {[%clk 0:02:57]} 9. h3 {[%clk 0:02:56]}  g6 {[%clk 0:02:53]} 10. Nf3 {[%clk 0:02:56]}  Bg7 {[%clk 0:02:54]} 11. O-O {[%clk 0:02:57]}  O-O {[%clk 0:02:54]} 12. Nc3 {[%clk 0:02:57]}  Nd5 {[%clk 0:02:51]} 13. Ne4 {[%clk 0:02:57]}  h6 {[%clk 0:02:49]} 14. Bd2 {[%clk 0:02:56]}  Bf5 {[%clk 0:02:48]} 15. Nc5 {[%clk 0:02:55]}  b6 {[%clk 0:02:45]} 16. Nb3 {[%clk 0:02:53]}  a5 {[%clk 0:02:31]} 17. a4 {[%clk 0:02:27]}  Nb4 {[%clk 0:02:29]} 18. Qc1 {[%clk 0:02:23]}  Nc2 {[%clk 0:02:20]} 19. Bxh6 {[%clk 0:02:22]}  Nxa1 {[%clk 0:02:18]} 20. Nxa1 {[%clk 0:02:22]}  Bd3 {[%clk 0:02:05]} 21. Re1 {[%clk 0:02:18]}  c5 {[%clk 0:02:01]} 22. dxc5 {[%clk 0:02:14]}  Rc8 {[%clk 0:02:01]} 23. Bxg7 {[%clk 0:02:09]}  Kxg7 {[%clk 0:02:01]} 24. Nb3 {[%clk 0:02:07]}  bxc5 {[%clk 0:01:55]} 25. Qc3 {[%clk 0:02:05]}  e6 {[%clk 0:01:47]} 26. Nxc5 {[%clk 0:01:54]}  Qd5 {[%clk 0:01:41]} 27. Qxd3 {[%clk 0:01:50]}  Rxc5 {[%clk 0:01:36]} 28. Qe3 {[%clk 0:01:44]}  Rfc8 {[%clk 0:01:27]} 29. Qf4 {[%clk 0:01:38]}  Qd8 {[%clk 0:01:22]} 30. Ng5 {[%clk 0:01:22]}  R8c7 {[%clk 0:01:19]} 31. Qh4 {[%clk 0:00:40]}  Qh8 {[%clk 0:01:12]} 32. Qf4 {[%clk 0:00:38]}  Qd8 {[%clk 0:01:12]} 33. b3 {[%clk 0:00:33]}  Rd5 {[%clk 0:01:00]} 34. Re3 {[%clk 0:00:31]}  Rd4 {[%clk 0:00:53]} 35. Qg3 {[%clk 0:00:20]}  Rc1+ {[%clk 0:00:45]} 36. Kh2 {[%clk 0:00:20]}  Rdd1 {[%clk 0:00:45]} 37. Qf4 {[%clk 0:00:19]}  Qe7 {[%clk 0:00:34]} 38. Rf3 {[%clk 0:00:19]}  Rh1+ {[%clk 0:00:31]} 39. Kg3 {[%clk 0:00:19]}  Rhg1 {[%clk 0:00:29]} 40. Qh4 {[%clk 0:00:18]} 1-0


[Site "https://www.chess.com"]

[Event "Late Titled Tuesday Blitz February 8 2022"]
[White "Nogerbek, Kazybek"]
[Black "Andrews, Todd"]
[WhiteFideId "13710427"]
[BlackFideId "2012456"]
[WhiteElo "2478"]
[BlackElo "2446"]
[Result "1-0"]
[Round "02"]
[TimeControl "180+1"]
[Date "2022.02.09"]
[WhiteClock "0:01:12"]
[BlackClock "0:00:07"]

1. c4 {[%clk 0:03:00]}  e5 {[%clk 0:02:59]} 2. Nc3 {[%clk 0:03:01]}  Nc6 {[%clk 0:02:59]} 3. Nf3 {[%clk 0:03:01]}  g6 {[%clk 0:02:55]} 4. d4 {[%clk 0:02:59]}  exd4 {[%clk 0:02:54]} 5. Nxd4 {[%clk 0:03:00]}  Bg7 {[%clk 0:02:54]} 6. Nxc6 {[%clk 0:03:01]}  bxc6 {[%clk 0:02:54]} 7. g3 {[%clk 0:03:02]}  Nf6 {[%clk 0:02:48]} 8. Bg2 {[%clk 0:03:02]}  O-O {[%clk 0:02:49]} 9. O-O {[%clk 0:03:02]}  Rb8 {[%clk 0:02:48]} 10. Qa4 {[%clk 0:02:57]}  a6 {[%clk 0:02:37]} 11. Qa5 {[%clk 0:02:54]}  Re8 {[%clk 0:02:33]} 12. Rd1 {[%clk 0:02:53]}  Ng4 {[%clk 0:01:59]} 13. h3 {[%clk 0:02:43]}  Ne5 {[%clk 0:01:55]} 14. b3 {[%clk 0:02:43]}  Qf6 {[%clk 0:01:44]} 15. Bf4 {[%clk 0:02:31]}  Nxc4 {[%clk 0:01:03]} 16. bxc4 {[%clk 0:02:24]}  Qxc3 {[%clk 0:01:02]} 17. Qxc7 {[%clk 0:02:23]}  Rb2 {[%clk 0:00:57]} 18. Rab1 {[%clk 0:02:17]}  Qxc4 {[%clk 0:00:39]} 19. Rxb2 {[%clk 0:02:11]}  Bxb2 {[%clk 0:00:39]} 20. e4 {[%clk 0:02:01]}  a5 {[%clk 0:00:29]} 21. Qxa5 {[%clk 0:01:50]}  Bg7 {[%clk 0:00:27]} 22. h4 {[%clk 0:01:45]}  h5 {[%clk 0:00:24]} 23. a3 {[%clk 0:01:41]}  Kh7 {[%clk 0:00:21]} 24. Qc7 {[%clk 0:01:38]}  d5 {[%clk 0:00:17]} 25. exd5 {[%clk 0:01:31]}  Bg4 {[%clk 0:00:17]} 26. Rc1 {[%clk 0:01:27]}  Qe2 {[%clk 0:00:13]} 27. dxc6 {[%clk 0:01:24]}  Bf3 {[%clk 0:00:11]} 28. Qxf7 {[%clk 0:01:15]}  Rf8 {[%clk 0:00:12]} 29. Qc4 {[%clk 0:01:14]}  Qb2 {[%clk 0:00:07]} 30. Bxf3 {[%clk 0:01:13]}  Rxf4 {[%clk 0:00:08]} 31. Qxf4 {[%clk 0:01:13]}  Qxa3 {[%clk 0:00:07]} 32. c7 {[%clk 0:01:12]} 1-0


[Site "https://www.chess.com"]

[Event "Late Titled Tuesday Blitz February 8 2022"]
[White "Papp, Petra"]
[Black "Balint, Vilmos"]
[WhiteFideId "739049"]
[BlackFideId "718050"]
[WhiteElo "2259"]
[BlackElo "2059"]
[Result "1/2-1/2"]
[Round "02"]
[TimeControl "180+1"]
[Date "2022.02.09"]
[WhiteClock "0:00:05"]
[BlackClock "0:00:46"]

1. d4 {[%clk 0:03:00]}  Nf6 {[%clk 0:02:59]} 2. c4 {[%clk 0:03:00]}  e6 {[%clk 0:02:59]} 3. g3 {[%clk 0:02:59]}  Bb4+ {[%clk 0:02:59]} 4. Bd2 {[%clk 0:02:59]}  c5 {[%clk 0:02:59]} 5. Nf3 {[%clk 0:02:56]}  O-O {[%clk 0:02:58]} 6. Bg2 {[%clk 0:02:56]}  d6 {[%clk 0:02:54]} 7. O-O {[%clk 0:02:55]}  Qe7 {[%clk 0:02:53]} 8. Nc3 {[%clk 0:02:52]}  Bxc3 {[%clk 0:02:38]} 9. Bxc3 {[%clk 0:02:51]}  Ne4 {[%clk 0:02:38]} 10. Qc2 {[%clk 0:02:46]}  Nxc3 {[%clk 0:02:38]} 11. Qxc3 {[%clk 0:02:46]}  Nc6 {[%clk 0:02:37]} 12. Rfd1 {[%clk 0:02:44]}  Bd7 {[%clk 0:02:26]} 13. Rd2 {[%clk 0:02:43]}  Rad8 {[%clk 0:02:25]} 14. Rad1 {[%clk 0:02:42]}  Bc8 {[%clk 0:02:17]} 15. a3 {[%clk 0:02:38]}  h6 {[%clk 0:02:16]} 16. b4 {[%clk 0:02:37]}  cxb4 {[%clk 0:02:15]} 17. axb4 {[%clk 0:02:37]}  b6 {[%clk 0:02:05]} 18. e3 {[%clk 0:02:16]}  d5 {[%clk 0:02:04]} 19. cxd5 {[%clk 0:02:05]}  Nxb4 {[%clk 0:02:01]} 20. dxe6 {[%clk 0:01:50]}  Bxe6 {[%clk 0:01:56]} 21. Ne5 {[%clk 0:01:48]}  Rc8 {[%clk 0:01:41]} 22. Qa3 {[%clk 0:01:43]}  a5 {[%clk 0:01:36]} 23. Rb2 {[%clk 0:01:15]}  Rfd8 {[%clk 0:01:32]} 24. Nd3 {[%clk 0:01:04]}  Rc4 {[%clk 0:01:20]} 25. Rdb1 {[%clk 0:00:58]}  Bf5 {[%clk 0:01:09]} 26. e4 {[%clk 0:00:41]}  Bxe4 {[%clk 0:01:04]} 27. Re1 {[%clk 0:00:39]}  f5 {[%clk 0:00:57]} 28. f3 {[%clk 0:00:36]}  Qd7 {[%clk 0:00:57]} 29. fxe4 {[%clk 0:00:31]}  Qxd4+ {[%clk 0:00:57]} 30. Nf2 {[%clk 0:00:24]}  Nc2 {[%clk 0:00:51]} 31. Rxc2 {[%clk 0:00:19]}  Rxc2 {[%clk 0:00:52]} 32. Rf1 {[%clk 0:00:18]}  fxe4 {[%clk 0:00:45]} 33. Bxe4 {[%clk 0:00:14]}  Rxf2 {[%clk 0:00:42]} 34. Rxf2 {[%clk 0:00:10]}  Qxe4 {[%clk 0:00:43]} 35. Qb3+ {[%clk 0:00:08]}  Kh8 {[%clk 0:00:41]} 36. Qxb6 {[%clk 0:00:08]}  Rd1+ {[%clk 0:00:41]} 37. Rf1 {[%clk 0:00:08]}  Rxf1+ {[%clk 0:00:38]} 38. Kxf1 {[%clk 0:00:08]}  Qf3+ {[%clk 0:00:39]} 39. Kg1 {[%clk 0:00:07]}  Qd1+ {[%clk 0:00:38]} 40. Kg2 {[%clk 0:00:07]}  Qd2+ {[%clk 0:00:39]} 41. Kh3 {[%clk 0:00:06]}  Qd7+ {[%clk 0:00:37]} 42. Kg2 {[%clk 0:00:06]}  a4 {[%clk 0:00:34]} 43. Qb8+ {[%clk 0:00:05]}  Kh7 {[%clk 0:00:35]} 44. Qb1+ {[%clk 0:00:05]}  Kg8 {[%clk 0:00:35]} 45. Qb8+ {[%clk 0:00:05]}  Kf7 {[%clk 0:00:35]} 46. Qf4+ {[%clk 0:00:04]}  Ke8 {[%clk 0:00:35]} 47. Qe4+ {[%clk 0:00:04]}  Kd8 {[%clk 0:00:36]} 48. Qa8+ {[%clk 0:00:04]}  Kc7 {[%clk 0:00:36]} 49. Qa7+ {[%clk 0:00:03]}  Kd6 {[%clk 0:00:37]} 50. Qd4+ {[%clk 0:00:03]}  Ke6 {[%clk 0:00:37]} 51. Qe4+ {[%clk 0:00:03]}  Kf6 {[%clk 0:00:35]} 52. Qf4+ {[%clk 0:00:03]}  Qf5 {[%clk 0:00:36]} 53. Qd6+ {[%clk 0:00:02]}  Qe6 {[%clk 0:00:34]} 54. Qd4+ {[%clk 0:00:02]}  Kf7 {[%clk 0:00:34]} 55. Qxa4 {[%clk 0:00:03]}  Qe2+ {[%clk 0:00:34]} 56. Kg1 {[%clk 0:00:02]}  Qe1+ {[%clk 0:00:34]} 57. Kg2 {[%clk 0:00:03]}  Qe2+ {[%clk 0:00:34]} 58. Kg1 {[%clk 0:00:04]}  h5 {[%clk 0:00:35]} 59. Qf4+ {[%clk 0:00:03]}  Kg6 {[%clk 0:00:35]} 60. Qf2 {[%clk 0:00:03]}  Qd1+ {[%clk 0:00:35]} 61. Qf1 {[%clk 0:00:03]}  Qd4+ {[%clk 0:00:36]} 62. Qf2 {[%clk 0:00:03]}  Qa1+ {[%clk 0:00:36]} 63. Kg2 {[%clk 0:00:03]}  Qa8+ {[%clk 0:00:36]} 64. Qf3 {[%clk 0:00:03]}  Qa2+ {[%clk 0:00:35]} 65. Qf2 {[%clk 0:00:03]}  Qd5+ {[%clk 0:00:36]} 66. Qf3 {[%clk 0:00:03]}  Qg5 {[%clk 0:00:37]} 67. Qd3+ {[%clk 0:00:03]}  Kh6 {[%clk 0:00:37]} 68. Qf3 {[%clk 0:00:04]}  g6 {[%clk 0:00:37]} 69. Qf4 {[%clk 0:00:04]}  Qxf4 {[%clk 0:00:38]} 70. gxf4 {[%clk 0:00:04]}  Kg7 {[%clk 0:00:39]} 71. Kg3 {[%clk 0:00:04]}  Kf6 {[%clk 0:00:39]} 72. Kf3 {[%clk 0:00:03]}  Kf5 {[%clk 0:00:40]} 73. h3 {[%clk 0:00:02]}  h4 {[%clk 0:00:40]} 74. Ke3 {[%clk 0:00:02]}  Kf6 {[%clk 0:00:39]} 75. Kf3 {[%clk 0:00:02]}  Ke6 {[%clk 0:00:40]} 76. Kg4 {[%clk 0:00:02]}  Kf6 {[%clk 0:00:38]} 77. Kxh4 {[%clk 0:00:03]}  Kf5 {[%clk 0:00:39]} 78. Kg3 {[%clk 0:00:03]}  g5 {[%clk 0:00:39]} 79. fxg5 {[%clk 0:00:02]}  Kxg5 {[%clk 0:00:40]} 80. h4+ {[%clk 0:00:03]}  Kh5 {[%clk 0:00:41]} 81. Kh3 {[%clk 0:00:04]}  Kh6 {[%clk 0:00:42]} 82. Kg4 {[%clk 0:00:05]}  Kh7 {[%clk 0:00:43]} 83. h5 {[%clk 0:00:05]}  Kh8 {[%clk 0:00:44]} 84. h6 {[%clk 0:00:05]}  Kg8 {[%clk 0:00:44]} 85. h7+ {[%clk 0:00:05]}  Kh8 {[%clk 0:00:45]} 86. Kg5 {[%clk 0:00:05]}  Kxh7 {[%clk 0:00:46]} 1/2-1/2


[Site "https://www.chess.com"]

[Event "Late Titled Tuesday Blitz February 8 2022"]
[White "Petersson, Kjell"]
[Black "Adewumi, Tanitoluwa"]
[WhiteFideId "1705148"]
[BlackFideId "30966396"]
[WhiteElo "2009"]
[BlackElo "2444"]
[Result "0-1"]
[Round "02"]
[TimeControl "180+1"]
[Date "2022.02.09"]
[WhiteClock "0:00:04"]
[BlackClock "0:01:26"]

1. d4 {[%clk 0:03:00]}  g6 {[%clk 0:03:00]} 2. e4 {[%clk 0:02:58]}  Bg7 {[%clk 0:03:01]} 3. Nc3 {[%clk 0:02:58]}  c6 {[%clk 0:03:01]} 4. Be3 {[%clk 0:02:55]}  d5 {[%clk 0:03:01]} 5. e5 {[%clk 0:02:52]}  h5 {[%clk 0:03:02]} 6. Qd2 {[%clk 0:02:49]}  Nh6 {[%clk 0:02:44]} 7. Nf3 {[%clk 0:02:31]}  Bg4 {[%clk 0:02:42]} 8. Be2 {[%clk 0:02:24]}  Bxf3 {[%clk 0:02:41]} 9. Bxf3 {[%clk 0:02:23]}  Nf5 {[%clk 0:02:42]} 10. Bg5 {[%clk 0:02:22]}  Qb6 {[%clk 0:02:35]} 11. O-O-O {[%clk 0:02:19]}  e6 {[%clk 0:02:24]} 12. Kb1 {[%clk 0:02:17]}  Nd7 {[%clk 0:02:20]} 13. h4 {[%clk 0:02:09]}  c5 {[%clk 0:02:19]} 14. Bxd5 {[%clk 0:01:13]}  exd5 {[%clk 0:02:02]} 15. Nxd5 {[%clk 0:01:13]}  Qc6 {[%clk 0:01:58]} 16. dxc5 {[%clk 0:01:06]}  O-O {[%clk 0:01:49]} 17. g4 {[%clk 0:01:02]}  hxg4 {[%clk 0:01:50]} 18. h5 {[%clk 0:01:00]}  Nxe5 {[%clk 0:01:50]} 19. hxg6 {[%clk 0:00:48]}  fxg6 {[%clk 0:01:51]} 20. Rh2 {[%clk 0:00:19]}  Nf3 {[%clk 0:01:50]} 21. Qf4 {[%clk 0:00:15]}  Nxh2 {[%clk 0:01:49]} 22. Qxh2 {[%clk 0:00:15]}  Kf7 {[%clk 0:01:40]} 23. Qf4 {[%clk 0:00:12]}  Rad8 {[%clk 0:01:34]} 24. Qxg4 {[%clk 0:00:11]}  Rxd5 {[%clk 0:01:31]} 25. Bd2 {[%clk 0:00:11]}  Rfd8 {[%clk 0:01:29]} 26. Qf4 {[%clk 0:00:07]}  Qf6 {[%clk 0:01:28]} 27. c3 {[%clk 0:00:06]}  Bh6 {[%clk 0:01:28]} 28. Qc7+ {[%clk 0:00:04]}  R8d7 {[%clk 0:01:26]} 0-1


[Site "https://www.chess.com"]

[Event "Late Titled Tuesday Blitz February 8 2022"]
[White "Postnikov, Daniil"]
[Black "Costachi, Mihnea"]
[WhiteFideId "4166329"]
[BlackFideId "1217518"]
[WhiteElo "2261"]
[BlackElo "2464"]
[Result "1/2-1/2"]
[Round "02"]
[TimeControl "180+1"]
[Date "2022.02.08"]
[WhiteClock "0:00:12"]
[BlackClock "0:00:46"]

1. e4 {[%clk 0:03:00]}  c5 {[%clk 0:03:00]} 2. Nf3 {[%clk 0:03:01]}  d6 {[%clk 0:03:00]} 3. Bb5+ {[%clk 0:03:01]}  Bd7 {[%clk 0:02:57]} 4. Bxd7+ {[%clk 0:03:01]}  Qxd7 {[%clk 0:02:58]} 5. c4 {[%clk 0:03:01]}  Nc6 {[%clk 0:02:55]} 6. d4 {[%clk 0:03:01]}  cxd4 {[%clk 0:02:55]} 7. Nxd4 {[%clk 0:03:02]}  Nxd4 {[%clk 0:02:55]} 8. Qxd4 {[%clk 0:03:02]}  Nf6 {[%clk 0:02:56]} 9. Nc3 {[%clk 0:03:03]}  g6 {[%clk 0:02:56]} 10. b3 {[%clk 0:03:03]}  Bg7 {[%clk 0:02:56]} 11. Bb2 {[%clk 0:03:04]}  O-O {[%clk 0:02:56]} 12. O-O {[%clk 0:03:04]}  a6 {[%clk 0:02:52]} 13. a4 {[%clk 0:03:01]}  Qg4 {[%clk 0:02:47]} 14. h3 {[%clk 0:02:51]}  Qh4 {[%clk 0:02:44]} 15. Nd5 {[%clk 0:02:42]}  Nh5 {[%clk 0:02:24]} 16. Qd2 {[%clk 0:02:34]}  e6 {[%clk 0:02:09]} 17. Bxg7 {[%clk 0:02:18]}  Nxg7 {[%clk 0:02:01]} 18. Nc3 {[%clk 0:02:13]}  Rfd8 {[%clk 0:02:01]} 19. Rad1 {[%clk 0:02:02]}  Rd7 {[%clk 0:01:56]} 20. f4 {[%clk 0:01:58]}  Rad8 {[%clk 0:01:55]} 21. Kh2 {[%clk 0:01:51]}  Nh5 {[%clk 0:01:49]} 22. Qe3 {[%clk 0:01:51]}  Nf6 {[%clk 0:01:47]} 23. Qf3 {[%clk 0:01:46]}  Qh5 {[%clk 0:01:38]} 24. g4 {[%clk 0:01:43]}  Qa5 {[%clk 0:01:36]} 25. f5 {[%clk 0:01:37]}  Qe5+ {[%clk 0:01:35]} 26. Kg2 {[%clk 0:01:35]}  gxf5 {[%clk 0:01:19]} 27. exf5 {[%clk 0:01:35]}  exf5 {[%clk 0:01:18]} 28. Nd5 {[%clk 0:01:34]}  Nxd5 {[%clk 0:01:16]} 29. Rxd5 {[%clk 0:01:34]}  Qe4 {[%clk 0:01:07]} 30. gxf5 {[%clk 0:00:56]}  Qxf3+ {[%clk 0:01:06]} 31. Rxf3 {[%clk 0:00:57]}  Kg7 {[%clk 0:01:07]} 32. f6+ {[%clk 0:00:57]}  Kg6 {[%clk 0:01:07]} 33. h4 {[%clk 0:00:54]}  h6 {[%clk 0:01:06]} 34. h5+ {[%clk 0:00:52]}  Kh7 {[%clk 0:01:06]} 35. Rg3 {[%clk 0:00:46]}  Rg8 {[%clk 0:01:03]} 36. Rxg8 {[%clk 0:00:44]}  Kxg8 {[%clk 0:01:04]} 37. Kg3 {[%clk 0:00:43]}  Rd8 {[%clk 0:01:04]} 38. Kf4 {[%clk 0:00:42]}  Kf8 {[%clk 0:01:05]} 39. Rd3 {[%clk 0:00:37]}  b6 {[%clk 0:00:58]} 40. Ke4 {[%clk 0:00:25]}  Rc8 {[%clk 0:00:56]} 41. Rxd6 {[%clk 0:00:21]}  Rb8 {[%clk 0:00:56]} 42. Kd5 {[%clk 0:00:19]}  b5 {[%clk 0:00:54]} 43. cxb5 {[%clk 0:00:19]}  axb5 {[%clk 0:00:55]} 44. a5 {[%clk 0:00:20]}  b4 {[%clk 0:00:53]} 45. Kc4 {[%clk 0:00:16]}  Kg8 {[%clk 0:00:50]} 46. a6 {[%clk 0:00:16]}  Kh7 {[%clk 0:00:49]} 47. a7 {[%clk 0:00:13]}  Rc8+ {[%clk 0:00:46]} 48. Kxb4 {[%clk 0:00:12]}  Rb8+ {[%clk 0:00:46]} 49. axb8=Q {[%clk 0:00:12]} 1/2-1/2


[Site "https://www.chess.com"]